Cogmind - Beta 16 --- EXPLORER MODE // 2025.12.26 @ 00:16:31 Player: Max Result: Destroyed by G-47 Trooper with Particle Gun Performance ------------- Evolutions (2) 1000 Regions Visited (3) 600 Robots Destroyed (26) 130 Value Destroyed (699) 699 Prototype IDs (2) 40 Alien Tech Used (0) 0 Bonus (0) 0 TOTAL SCORE: 2469 Bonus ------- None Cogmind --------- Core Integrity 0/550 Matter 300/300 Energy 100/100 System Corruption 0% Temperature Cool (9) Movement Core (350) Ox6 Location -8/Materials Parts ------- > --- POWER (3) -------- (None) > --- PROPULSION (2) --- (None) > --- UTILITY (4) ------ Large Storage Unit Visual Processing Unit Targeting Computer > --- WEAPON (3) ------- (None) > --- INVENTORY (15) --- Ion Engine Light Ion Engine Light Treads Light Treads Aluminum Leg Aluminum Leg Heat Sink High-capacity Battery (250) Small Matter Pod (50) Weight Redist. System Light Armor Plating Light Armor Plating Peak State ------------ > --- POWER ------------ Ion Engine Improved Ion Engine > --- PROPULSION ------- Aluminum Leg Aluminum Leg > --- UTILITY ---------- Heat Sink Large Storage Unit Visual Processing Unit Targeting Computer > --- WEAPON ----------- Medium Laser Field Laser Heavy Assault Rifle > --- INVENTORY -------- Ion Engine Light Ion Engine Light Treads Light Treads Aluminum Leg Aluminum Leg Heat Sink High-capacity Battery Small Matter Pod Weight Redist. System Light Armor Plating Light Armor Plating EM Pulse Gun Medium Laser Small Laser [Rating: 17] Favorites ----------- Power Ion Engine Engine Ion Engine Propulsion Aluminum Leg Leg Aluminum Leg Flight Unit Surge Thruster Utility Targeting Computer Device Terrain Scanner Storage Large Storage Unit Processor Targeting Computer Weapon Medium Laser Energy Gun Medium Laser Ballistic Gun Heavy Assault Rifle Build | -11 -10 -9 -8 ------- Run | Yrd Mat Mat Mat Slots Evolved 5 | . 1 2 2 Power 2 | . . 1 1 Propulsion . | . . . . Utility 2 | . 1 1 . Weapon 1 | . . . 1 Parts Attached 32 | 8 4 17 3 Power 7 | 2 . 5 . Engine 7 | 2 . 5 . Core . | . . . . Reactor . | . . . . Propulsion 7 | 2 . 4 1 Treads . | . . . . Leg 6 | 2 . 4 . Wheel . | . . . . Hover . | . . . . Flight 1 | . . . 1 Utility 11 | 2 2 7 . Device 6 | 1 . 5 . Storage 3 | 1 1 1 . Processor 2 | . 1 1 . Hackware . | . . . . Protection . | . . . . Artifact . | . . . . Weapon 7 | 2 2 1 2 Energy Gun 6 | 2 2 . 2 Energy Cannon . | . . . . Ballistic Gun 1 | . . 1 . Ballistic Cannon . | . . . . Launcher . | . . . . Special Weapon . | . . . . Impact Weapon . | . . . . Slashing Weapon . | . . . . Piercing Weapon . | . . . . Special Melee Weapon . | . . . . Unidentified Prototypes . | . . . . Parts Lost 7 | . . . 7 Power 2 | . . . 2 Propulsion 1 | . . . 1 Utility 1 | . . . 1 Weapon 3 | . . . 3 Highest Loss Streak 4 | . . . 4 To Critical Strikes . | . . . . Average Backups 11 | 3 9 12 14 Power 1 | . . 1 2 Propulsion 3 | . 2 3 4 Utility 5 | 1 4 4 6 Weapon 2 | . 1 2 1 Tool/Special . | . . . . Unused Backups 11 | . 1 1 9 Power 1 | . . . 1 Propulsion 4 | . . 1 3 Utility 5 | . . . 5 Weapon 1 | . 1 . . Tool/Special . | . . . . Average Slot Usage (%) 91 | . 100 98 67 Engine 15 | . 12 18 10 Leg 18 | . 25 19 7 Device 14 | . 12 19 7 Storage 10 | . 12 10 8 Processor 12 | . 12 10 16 Energy Gun 14 | . 25 11 8 Ballistic Gun 5 | . . 8 5 Peak Build Rating 17 | 7 9 14 17 Average Rating 11 | 5 8 11 12 On Entrance 7 | . 7 9 14 Avg Prop Armor Cover (%) . | . . . . Naked Turns . | . . . . Heaviest Build 41 | 16 30 39 41 Greatest Support 20 | 20 20 20 20 Greatest Overweight (x) 11 | 4 1 3 11 Average Overweight (x) 1 | . . 1 2 Largest Inventory Capacity 25 | 10 15 25 15 Average Capacity 14 | 9 14 15 15 Most Carried 15 | 7 12 15 15 Average Carried 11 | 3 9 12 13 Final Capacity 15 | 10 15 15 15 Final Carried 15 | 7 11 15 12 Class Distribution -------------------- 51% | Hacker-Mutant 30% | Scavenger-Mutant 9% | Scientist-Mutant 8% | Scientist-Gunner Dominant Class ---------------- Hacker-Mutant | -10/Materials Scavenger-Mutant | -9/Materials Hacker-Mutant | -8/Materials Resources | -11 -10 -9 -8 ----------- Run | Yrd Mat Mat Mat Matter Collected 771 | 229 151 297 94 Remotely . | . . . . Salvage Created 863 | . 86 575 202 Parts 64 | . 5 44 15 Haulers Intercepted 1 | . . . 1 Recyclers Shooed . | . . . . Parts Field Recycled . | . . . . Retrieved Matter . | . . . . Parts Self-Destructed . | . . . . Prevented . | . . . . Parts Restored . | . . . . Kills | -11 -10 -9 -8 ------- Run | Yrd Mat Mat Mat Combat Hostiles Destroyed 22 | . 2 17 3 Guns 22 | . 2 17 3 Classes Destroyed 6 | . 1 3 2 Tunneler 1 | . . . 1 Hauler 1 | . . . 1 Watcher 2 | . . 2 . Swarmer 6 | . . 5 1 Grunt 12 | . 2 10 . Sentry 4 | . . 2 2 Best Kill Streak 4 | . 1 4 2 Combat Bots Only 4 | . 1 4 1 Max Kills in Single Turn 1 | . 1 1 1 Gunslinging . | . . . . Exploded . | . . . . Melee . | . . . . Uniques/NPCs Destroyed . | . . . . Combat | -11 -10 -9 -8 -------- Run | Yrd Mat Mat Mat Hostile Shots Fired 232 | . 14 56 162 Missed 63 | . 4 13 46 Hits 169 | . 10 43 116 Projectile 169 | . 10 43 116 Critical Strikes 2 | . . . 2 Damage Taken 1443 | . 66 308 1069 Core 628 | . 6 71 551 Absorbed by Shields . | . . . . Ignored by Resistances 886 | . 43 198 645 Regen/Repaired (Parts) 52 | . . 52 . Core Remaining (%) 93 | 100 97 82 . Volleys Fired 60 | . 8 38 14 Largest 3 | . 2 2 3 Hottest 136 | . 100 100 136 Shots Fired 123 | . 16 77 30 Gun 123 | . 16 77 30 Cannon . | . . . . Launcher . | . . . . Special . | . . . . Kinetic 37 | . . 31 6 Thermal 82 | . 16 46 20 Explosive . | . . . . Electromagnetic 4 | . . . 4 Robot Hit Streak 76 | . 14 76 20 Robot Miss Streak 3 | . . 1 3 Penetration Max . | . . . . Secondary Targets . | . . . . Shots Hit Robots 100 | . 14 65 21 Core Hits 46 | . 5 31 10 Critical Kills . | . . . . Critical Parts Destroyed . | . . . . Critical Strikes 5 | . 1 3 1 Burn 5 | . 1 3 1 Melee Attacks . | . . . . Impact . | . . . . Slashing . | . . . . Piercing . | . . . . Sneak Attacks . | . . . . Combat Hostiles . | . . . . Follow-up Attacks . | . . . . Damage Inflicted 1353 | . 158 889 306 Guns 1333 | . 158 869 306 Cannons . | . . . . Explosions . | . . . . Melee . | . . . . Ramming 20 | . . 20 . Kinetic 408 | . . 348 60 Thermal 877 | . 158 521 198 Explosive . | . . . . Electromagnetic 48 | . . . 48 Impact . | . . . . Slashing . | . . . . Piercing . | . . . . Highest Corruption 1 | . . 1 . Average Corruption 1 | . . 1 . Corruption Purged . | . . . . Corruption Blocked . | . . . . Effects 9 | . . 9 . Message Errors 1 | . . 1 . Matter Fused 3 | . . 3 . Heat Flow Errors 2 | . . 2 . Data Loss (minor) 2 | . . 2 . Misfires 1 | . . 1 . Overload Shots . | . . . . Overflow Damage . | . . . . Projectiles . | . . . . Explosions . | . . . . Melee . | . . . . Knockbacks . | . . . . Impact . | . . . . Kinetic . | . . . . Secondary . | . . . . Self-Inflicted Damage . | . . . . Shots . | . . . . Rammed 1 | . . . 1 Targets Rammed 5 | . . 4 1 Kicked 4 | . . 4 . Crushed . | . . . . Highest Temperature 246 | . 84 246 123 Average Temperature 49 | . 28 60 53 Received Heat Transfer 1008 | . 60 183 765 Siege Activations . | . . . . Martial Activations . | . . . . Shielding Activations . | . . . . Robots Disrupted . | . . . . Combat Hostiles . | . . . . Robots Corrupted . | . . . . Combat Hostiles . | . . . . Parts Fried . | . . . . Impact Corruptions . | . . . . Robots Melted . | . . . . Combat Hostiles . | . . . . Parts Melted 4 | . . 2 2 Heat Transferred 2828 | . 460 1739 629 Parts Sabotaged . | . . . . Parts Stolen . | . . . . Parts Stripped . | . . . . Power Chain Reactions . | . . . . Alert | -11 -10 -9 -8 ------- Run | Yrd Mat Mat Mat Maximum Alert Level . | . . . . Low Security (%) 100 | 100 100 100 100 Level 1 . | . . . . Level 2 . | . . . . Level 3 . | . . . . Level 4 . | . . . . Level 5 . | . . . . High Security . | . . . . Max Security . | . . . . Peak Influence 75 | . 20 75 30 Initial . | . . . . Average 7 | . 2 10 3 Influence Increases 632 | . 62 459 111 Destroy 0b10 Robot/C 440 | . 40 340 60 Destroy 0b10 Robot/NC 20 | . . 10 10 Destroy Leader 96 | . . 74 22 Successful Hack 24 | . 7 17 . Disable Machine 4 | . . . 4 Destroy Structure 3 | . . 3 . Lose Combat Pursuer 45 | . 15 15 15 Influence Decreases 632 | . 62 459 111 Time Decay 612 | . 62 459 91 Lost Part 20 | . . . 20 Squads Dispatched 4 | . . 3 1 Investigation 1 | . . 1 . Extermination . | . . . . Reinforcement 3 | . . 2 1 Assault . | . . . . Garrison . | . . . . Intercept . | . . . . Searches Triggered . | . . . . Construction Impeded . | . . . . Haulers Reinforced . | . . . . Active Scanning Responses . | . . . . Cargo Convoy Interrupts . | . . . . Stealth | -11 -10 -9 -8 --------- Run | Yrd Mat Mat Mat Distress Signals 2 | . . . 2 Communications Jammed . | . . . . Distress Signals . | . . . . Times Spotted 44 | . 7 24 13 Peak Tracking Total 4 | . 3 3 4 Tactical Retreats 3 | . 1 1 1 Traps | -11 -10 -9 -8 ------- Run | Yrd Mat Mat Mat Traps Triggered 3 | . . 1 2 Indirectly . | . . . . Trap Hack Attempts . | . . . . Triggered . | . . . . Disarmed 1 | . . 1 . Reprogrammed . | . . . . Reused . | . . . . Traps Extracted . | . . . . Installed . | . . . . Triggered . | . . . . Machines | -11 -10 -9 -8 ---------- Run | Yrd Mat Mat Mat Machines Disabled 1 | . . . 1 Max in Single Turn 1 | . . . 1 Machines Repaired . | . . . . Machines Dismantled . | . . . . Machines Sabotaged . | . . . . Overloaded Fab Kills . | . . . . Hacking | -11 -10 -9 -8 --------- Run | Yrd Mat Mat Mat Machines Accessed 8 | . 2 5 1 Terminals 5 | . 2 3 . Fabricators . | . . . . Repair Stations 1 | . . 1 . Recycling Units 1 | . . . 1 Scanalyzers 1 | . . 1 . Garrison Access . | . . . . Total Hacks 32 | . 3 24 5 Successful 29 | . 3 21 5 Failed 3 | . . 3 . Catastrophic . | . . . . Database Lockouts . | . . . . Manual . | . . . . Terminals 14 | . 3 11 . Fabricators . | . . . . Repair Stations 3 | . . 3 . Recycling Units 5 | . . . 5 Scanalyzers 10 | . . 10 . Garrison Access . | . . . . Terminal Hacks 12 | . 3 9 . Record 3 | . 2 1 . Prototype ID Bank 1 | . . 1 . Level Access Points 1 | . . 1 . Branch Access Points 1 | . . 1 . Alert Level 1 | . . 1 . Locate Traps 2 | . 1 1 . Disarm Traps 1 | . . 1 . Hauler Manifests 1 | . . 1 . Zone Layout 1 | . . 1 . Fabricator Hacks . | . . . . Repair Station Hacks 2 | . . 2 . Scan Component 1 | . . 1 . Repair 1 | . . 1 . Recycling Unit Hacks 5 | . . . 5 Recycle Component 1 | . . . 1 Process 3 | . . . 3 Report Inventory 1 | . . . 1 Scanalyzer 10 | . . 10 . Insert Component 1 | . . 1 . Analyze 1 | . . 1 . Retrieve Study 8 | . . 8 . Garrison Access Hacks . | . . . . Unauthorized Hacks . | . . . . Terminals . | . . . . Fabricators . | . . . . Repair Stations . | . . . . Recycling Units . | . . . . Scanalyzers . | . . . . Garrison Access . | . . . . Data Cores Recovered . | . . . . Used . | . . . . Hacking Detections 4 | . 1 3 . Full Trace Events 1 | . . 1 . Feedback Events . | . . . . Feedback Blocked . | . . . . Robot Schematics Acquired . | . . . . Robots Built . | . . . . Authchips . | . . . . Time . | . . . . Total Robot Build Rating . | . . . . Part Schematics Acquired 1 | . . 1 . Parts Built . | . . . . Authchips . | . . . . Time . | . . . . Total Part Build Rating . | . . . . Part Studies Acquired 8 | . . 8 . Parts Repaired 1 | . . 1 . Time 13 | . . 13 . Parts Recycled 1 | . . . 1 Recycled Matter 52 | . . . 52 Retrieved Matter . | . . . . Retrieved Components . | . . . . Parts Scanalyzed 1 | . . 1 . Part Schematics Acquired 1 | . . 1 . Parts Damaged . | . . . . Bothacking | -11 -10 -9 -8 ------------ Run | Yrd Mat Mat Mat Used RIF Installer . | . . . . Robots Hacked . | . . . . Non-combat . | . . . . Combat . | . . . . Robot Hacks Applied . | . . . . Relay Couplers Released . | . . . . Fabnet Peak Effective % . | . . . . Robots Rewired . | . . . . Allies Hacked . | . . . . Hacks Repelled . | . . . . Allies | -11 -10 -9 -8 -------- Run | Yrd Mat Mat Mat Total Allies . | . . . . Largest Group . | . . . . Highest-Rated Group . | . . . . Highest-Rated Ally . | . . . . Total Orders . | . . . . Ally Attacks . | . . . . Total Damage . | . . . . Kills . | . . . . Allies Corrupted . | . . . . Allies Melted . | . . . . Intel | -11 -10 -9 -8 ------- Run | Yrd Mat Mat Mat Active Infowar (turns) 2203 | 41 504 1165 493 Optics 567 | . . 74 493 Terrain 1636 | 41 504 1091 . Robot Analysis Total . | . . . . Derelict Logs Recovered . | . . . . Drone Launches . | . . . . Drone Recoveries . | . . . . Exploration | -11 -10 -9 -8 ------------- Run | Yrd Mat Mat Mat Turns Passed 2227 | 65 504 1165 493 Spaces Moved 901 | 37 253 517 94 Core 11 | 7 . . 4 Treads . | . . . . Legs 886 | 30 253 517 86 Wheels . | . . . . Hover . | . . . . Flight 4 | . . . 4 Fastest Speed 50 | 50 120 175 175 Average Speed 189 | 127 178 188 248 Slowest Speed 600 | 250 190 315 600 Overloaded Moves . | . . . . Propulsion Burnouts . | . . . . Robots Hopped . | . . . . Potential Cave-ins . | . . . . Cave-ins Triggered . | . . . . Exploration Rate (%) 26 | 3 49 44 10 Regions Visited 3 Branch Regions . Pre-discovered Areas . | . . . . Known Exits Taken 3 | 1 1 1 . Unknown Exits Taken . | . . . . Scrap Searched . | . . . . Spaces Dug . | . . . . Terrain Destroyed . | . . . . Melee . | . . . . Projectile . | . . . . AOE . | . . . . Terrain Rammed . | . . . . Walls Destroyed . | . . . . Machines Disabled . | . . . . Actions | -11 -10 -9 -8 --------- Run | Yrd Mat Mat Mat Total 1287 | 51 289 626 321 Wait 241 | . 15 20 206 Move 898 | 36 252 516 94 Hop . | . . . . Pick Up 25 | 7 6 11 1 Fast Attach 10 | 7 . 2 1 Attach 6 | . 1 2 3 Detach . | . . . . Swap 24 | 1 4 18 1 Drop 18 | . 3 15 . Fire 60 | . 8 38 14 Melee . | . . . . Ram 1 | . . . 1 Kick 4 | . . 4 . Crush . | . . . . Escape Stasis . | . . . . Rewire . | . . . . Trap . | . . . . Miscellaneous . | . . . . Route ------- -11/Scrapyard -10/Materials (discovered 2 exits: *Mat / *Min) -9/Materials (discovered 4 exits: *Mat x3 / Min) -8/Materials History --------- Turn | Location | Event 46 | -11/Scrapyard | Identified exit to Materials 46 | -11/Scrapyard | Discovered exit to Materials (range 15) 66 | -11/Scrapyard | Entered Materials 66 | -10/Materials | Evolved 1 slot: Utility x1 301 | -10/Materials | Build established: Hacker-Mutant 426 | -10/Materials | Identified exit to Materials 426 | -10/Materials | Discovered exit to Materials (range 6) 462 | -10/Materials | Identified exit to Mines 462 | -10/Materials | Discovered exit to Mines (range 13) 570 | -10/Materials | Entered another Materials area 570 | -9/Materials | Evolved 2 slots: Power x1, Utility x1 811 | -9/Materials | Repaired Aluminum Leg 834 | -9/Materials | Identified exit to Materials 1170 | -9/Materials | Build established: Scavenger-Mutant 1451 | -9/Materials | Identified exit to Mines 1735 | -9/Materials | Entered another Materials area 1735 | -8/Materials | Evolved 2 slots: Power x1, Weapon x1 2113 | -8/Materials | Lost 3 parts (2p1w) 2135 | -8/Materials | Core integrity fell below 50% 2213 | -8/Materials | Core integrity fell below 20% 2227 | -8/Materials | Lost 4 parts (1n1u2w) 2228 | -8/Materials | Destroyed by G-47 Trooper with Particle Gun Last Messages --------------- R-06 Scavenger collects Lgt. Ion Engine+. Y-45 Defender IFF system glitched. R-06 Scavenger collects Hvy. Mace. EM Pulse Gun+ destroyed. Y-45 Defender destroyed. G-47 Trooper suffers critical hit (Burn). Acquired 11 matter. Med. Laser+ destroyed. Heat Sink destroyed. Surge Thruster destroyed. Critical hit (Burn: +37). R-06 Scavenger collects Lgt. Treads+. R-06 Scavenger collects Heat Sink. R-06 Scavenger collects Pulse Rifle. R-06 Scavenger collects Flak Cannon. Critical hit (Burn: +37). K-01 Serf collects debris. G-47 Trooper destroyed. K-01 Serf collects debris. [Achievement: First Step to Greatness] Map ----- +----------------------------------------------------+ | ???????????????# # #???????????? | | ???????????????# + " #???????????? | | ???????????????# """" # #???????????? | | ???????????????# """" # ########???????????? | | ???????????????# """" ## ###########?????????? | | ???????????????# ## # #?????????? | | ???????????????########### # #?????????? | | ?????????????????????????# + #?????????? | | ?????????????????????????# # #?????????? | | ?????????????????????????# # """ """ #?????????? | | ?????????????????????????# # """ """ #?????????? | | ??????????################ # """ """ #?????????? | | ???????? % # #?????????? | | ???????? ###########?????????? | | ???????? "T #???????????????????? | | ??????????####+### #???????????????????? | | ?????????????????# #???????????????????? | | ?????????????????# """ ##??????????????????? | | ?????????????????# """ #??????????????????? | | ?????????????????# """ #??????????????????? | | ?????????????????# #??????????????????? | | ?????????????????# #??????????????????? | | ?????????????????# ! #??????????????????? | | ?????????????????# ^%##########????#?????????????? | | ?????????????????# # ##### ####??????????? | | ?????????????????# % k@[!|g= u ??????? | | ?????????????????# k %%[/=!!g u T??????? | | ?????????????""" + # !|!##### o#####?????????? | | ???????????? """ # ######???????##?????????????? | | ???????????? "" #####???????????????????????????? | | ??????????? ?????????????????????????????????? | | ?????????? ?????????????????????????????????? | | ?????????######??????????????????????????????????? | | ?????????????????????????????????????????????????? | | ?????????????????????????????????????????????????? | | ?????????????????????????????????????????????????? | | ?????????????????????????????????????????????????? | | ?????????????????????????????????????????????????? | | ?????????????????????????????????????????????????? | | ?????????????????????????????????????????????????? | | ?????????????????????????????????????????????????? | | ?????????????????????????????????????????????????? | | ?????????????????????????????????????????????????? | | ?????????????????????????????????????????????????? | | ?????????????????????????????????????????????????? | | ?????????????????????????????????????????????????? | | ?????????????????????????????????????????????????? | | ?????????????????????????????????????????????????? | | ?????????????????????????????????????????????????? | | ?????????????????????????????????????????????????? | +----------------------------------------------------+ Best States ------------- Heat Dissipation 41 Energy Generation 21 Energy Capacity 415 Matter Stores 300 Matter Capacity 300 Sight Range 18 Terrain Scan Range 14 Terrain Scan Density 10 Resistance: KI 35 Resistance: TH 35 Resistance: EX 35 Resistance: EM 35 Resistance: I 35 Resistance: S 35 Resistance: P 35 Evasion (%) 55 Targeting Accuracy 5 Offensive Hacking 20 Item Schematics ----------------- Hcp. Battery | -9/Materials | Scanalyzed Robot Schematics ------------------ None Fabricated ------------ Nothing Repaired ---------- Aluminum Leg | 42% | -9/Materials Studied --------- Ion Engine | -9/Materials | Hacked Aluminum Leg | -9/Materials | Hacked Imp. Ion Engine | -9/Materials | Hacked Lgt. Ion Engine | -9/Materials | Hacked Hvy. Assault Rifle | -9/Materials | Hacked EM Pulse Gun | -9/Materials | Hacked Med. Laser | -9/Materials | Hacked Lgt. Treads | -9/Materials | Hacked Alien Tech Used ----------------- None Achievements -------------- First Step to Greatness For Emergencies Only I Have A Map? Loot Pinata Shopping List There's More Where That Came From Challenges ------------ None Game ------ Seed HugeResetSlamshotty Manual? 0 Play Time 00:29:31 Cumulative 1.6 hours Start 2025.12.25 @ 23:47:11 End 2025.12.26 @ 00:16:31 Sessions 1 Manual Loads 0 Difficulty Explorer Special Mode None Game No. 8 Rogue 0 Adventurer 0 Explorer 8 Win Type - Total 0 Types 0/0/0/0/0/0/0/0/0/0 Lore% 6 Gallery% 3 Achievement% 4 Wizard Run 0 Options --------- Layout 1 ASCII 0 Keyboard 0 Movement Mouse Keybinds 0 Fullscreen 1 Font 24/Smallcaps Map View 50x35 Zoom Use 0% Tactical HUD 0 Map Filters NONE Filters NONE Steam 1 RUN: 787ec423-9573-4382-ac41-a221a8a0ed57